[Event "Titled Tuesday Blitz May 16 Early 2023"]
[White "MIM06"]
[Black "Kuzmin, Roman"]
[BlackFideId "44134932"]
[WhiteElo "2278"]
[BlackElo "2122"]
[Result "1/2-1/2"]
[Round "02"]
[TimeControl "180+2"]
[Date "2023.05.16"]
[WhiteClock "0:00:14"]
[BlackClock "0:00:02"]

1. e4 {[%clk 0:02:31]}  c5 {[%clk 0:02:59]} 2. Nf3 {[%clk 0:02:31]}  d6 {[%clk 0:02:59]} 3. Bb5+ {[%clk 0:02:30]}  Bd7 {[%clk 0:02:59]} 4. Bxd7+ {[%clk 0:02:31]}  Qxd7 {[%clk 0:03:00]} 5. c4 {[%clk 0:02:31]}  Nc6 {[%clk 0:03:00]} 6. d4 {[%clk 0:02:29]}  cxd4 {[%clk 0:03:01]} 7. Nxd4 {[%clk 0:02:30]}  Nf6 {[%clk 0:02:59]} 8. Nc3 {[%clk 0:02:30]}  g6 {[%clk 0:03:00]} 9. Be3 {[%clk 0:02:30]}  Bg7 {[%clk 0:02:59]} 10. f3 {[%clk 0:02:30]}  Qc7 {[%clk 0:02:53]} 11. b3 {[%clk 0:02:25]}  Qa5 {[%clk 0:02:17]} 12. Qd2 {[%clk 0:02:20]}  O-O {[%clk 0:02:16]} 13. O-O {[%clk 0:02:17]}  Nxd4 {[%clk 0:02:06]} 14. Bxd4 {[%clk 0:02:16]}  Nd7 {[%clk 0:02:07]} 15. Bxg7 {[%clk 0:02:13]}  Kxg7 {[%clk 0:02:08]} 16. Qd4+ {[%clk 0:02:11]}  Qe5 {[%clk 0:02:03]} 17. Qd2 {[%clk 0:02:02]}  a6 {[%clk 0:01:58]} 18. f4 {[%clk 0:01:47]}  Qc5+ {[%clk 0:01:58]} 19. Kh1 {[%clk 0:01:48]}  b5 {[%clk 0:01:58]} 20. Rac1 {[%clk 0:01:25]}  Qb4 {[%clk 0:01:09]} 21. Qd4+ {[%clk 0:01:09]}  e5 {[%clk 0:00:51]} 22. fxe5 {[%clk 0:01:08]}  Nxe5 {[%clk 0:00:51]} 23. Nd5 {[%clk 0:01:09]}  Qa3 {[%clk 0:00:34]} 24. c5 {[%clk 0:00:48]}  f6 {[%clk 0:00:14]} 25. Nc7 {[%clk 0:00:29]}  dxc5 {[%clk 0:00:11]} 26. Rxc5 {[%clk 0:00:21]}  Rac8 {[%clk 0:00:06]} 27. Ne6+ {[%clk 0:00:19]}  Kg8 {[%clk 0:00:06]} 28. Rxc8 {[%clk 0:00:13]}  Rxc8 {[%clk 0:00:06]} 29. Qd5 {[%clk 0:00:14]}  Nf7 {[%clk 0:00:05]} 30. Qd7 {[%clk 0:00:12]}  Qc1 {[%clk 0:00:03]} 31. Rg1 {[%clk 0:00:04]}  Qc6 {[%clk 0:00:03]} 32. Qxc6 {[%clk 0:00:03]}  Rxc6 {[%clk 0:00:04]} 33. Nd4 {[%clk 0:00:04]}  Rd6 {[%clk 0:00:04]} 34. Nf3 {[%clk 0:00:04]}  Nd8 {[%clk 0:00:02]} 35. g3 {[%clk 0:00:04]}  Kf7 {[%clk 0:00:02]} 36. Kg2 {[%clk 0:00:04]}  Nc6 {[%clk 0:00:03]} 37. Kf2 {[%clk 0:00:05]}  Nb4 {[%clk 0:00:03]} 38. Ke3 {[%clk 0:00:05]}  Nxa2 {[%clk 0:00:02]} 39. Ra1 {[%clk 0:00:05]}  Nb4 {[%clk 0:00:02]} 40. Rc1 {[%clk 0:00:05]}  a5 {[%clk 0:00:02]} 41. Rc5 {[%clk 0:00:05]}  Rb6 {[%clk 0:00:03]} 42. Nd4 {[%clk 0:00:05]}  a4 {[%clk 0:00:03]} 43. Rxb5 {[%clk 0:00:05]}  Rxb5 {[%clk 0:00:02]} 44. Nxb5 {[%clk 0:00:06]}  axb3 {[%clk 0:00:03]} 45. Kd2 {[%clk 0:00:07]}  Ke6 {[%clk 0:00:02]} 46. Kc3 {[%clk 0:00:07]}  Nc6 {[%clk 0:00:02]} 47. Kxb3 {[%clk 0:00:07]}  Ke5 {[%clk 0:00:02]} 48. Nc3 {[%clk 0:00:08]}  Kd4 {[%clk 0:00:02]} 49. Kc2 {[%clk 0:00:08]}  Ke3 {[%clk 0:00:02]} 50. Nd5+ {[%clk 0:00:08]}  Kxe4 {[%clk 0:00:03]} 51. Nxf6+ {[%clk 0:00:09]}  Kf3 {[%clk 0:00:03]} 52. Nxh7 {[%clk 0:00:10]}  Kg2 {[%clk 0:00:03]} 53. Kd3 {[%clk 0:00:10]}  Kxh2 {[%clk 0:00:04]} 54. g4 {[%clk 0:00:11]}  Kg3 {[%clk 0:00:04]} 55. g5 {[%clk 0:00:12]}  Kg4 {[%clk 0:00:04]} 56. Ke4 {[%clk 0:00:12]}  Nd8 {[%clk 0:00:04]} 57. Ke5 {[%clk 0:00:12]}  Kh5 {[%clk 0:00:02]} 58. Kf6 {[%clk 0:00:12]}  Nc6 {[%clk 0:00:02]} 59. Nf8 {[%clk 0:00:13]}  Nb4 {[%clk 0:00:02]} 60. Nxg6 {[%clk 0:00:13]}  Nd5+ {[%clk 0:00:02]} 61. Kf5 {[%clk 0:00:13]}  Ne3+ {[%clk 0:00:02]} 62. Kf6 {[%clk 0:00:13]}  Nd5+ {[%clk 0:00:02]} 63. Kg7 {[%clk 0:00:14]}  Kxg5 {[%clk 0:00:02]} 1/2-1/2


[Site "https://www.chess.com"]

[Event "Titled Tuesday Blitz May 16 Early 2023"]
[White "Goltseva, Ekaterina"]
[Black "Zaichenko, Daria"]
[WhiteFideId "24173770"]
[BlackFideId "4197453"]
[WhiteElo "2114"]
[BlackElo "2039"]
[Result "1-0"]
[Round "02"]
[TimeControl "180+2"]
[Date "2023.05.16"]
[WhiteClock "0:01:03"]
[BlackClock "0:00:33"]

1. Nf3 {[%clk 0:02:56]}  Nf6 {[%clk 0:02:59]} 2. c4 {[%clk 0:02:55]}  e6 {[%clk 0:02:59]} 3. g3 {[%clk 0:02:55]}  d5 {[%clk 0:03:00]} 4. cxd5 {[%clk 0:02:54]}  exd5 {[%clk 0:02:59]} 5. Bg2 {[%clk 0:02:55]}  Be7 {[%clk 0:02:59]} 6. O-O {[%clk 0:02:55]}  O-O {[%clk 0:02:59]} 7. d4 {[%clk 0:02:54]}  c5 {[%clk 0:02:57]} 8. dxc5 {[%clk 0:02:53]}  Bxc5 {[%clk 0:02:58]} 9. a3 {[%clk 0:02:54]}  h6 {[%clk 0:02:57]} 10. b4 {[%clk 0:02:51]}  Bd6 {[%clk 0:02:52]} 11. Bb2 {[%clk 0:02:51]}  Be6 {[%clk 0:02:51]} 12. Nc3 {[%clk 0:02:46]}  Nc6 {[%clk 0:02:50]} 13. Nb5 {[%clk 0:02:41]}  Be7 {[%clk 0:02:45]} 14. Nbd4 {[%clk 0:02:38]}  Ne4 {[%clk 0:02:43]} 15. Nxe6 {[%clk 0:02:36]}  fxe6 {[%clk 0:02:43]} 16. b5 {[%clk 0:02:33]}  Na5 {[%clk 0:02:39]} 17. Nd4 {[%clk 0:02:30]}  Nc4 {[%clk 0:02:20]} 18. Nxe6 {[%clk 0:02:14]}  Nxb2 {[%clk 0:02:08]} 19. Qb3 {[%clk 0:02:08]}  Qd6 {[%clk 0:01:31]} 20. Nxf8 {[%clk 0:02:03]}  Nd2 {[%clk 0:01:30]} 21. Qxb2 {[%clk 0:01:40]}  Nxf1 {[%clk 0:01:29]} 22. Ng6 {[%clk 0:01:27]}  Bf6 {[%clk 0:01:26]} 23. Qc2 {[%clk 0:01:13]}  Bxa1 {[%clk 0:00:33]} 24. Bxd5+ {[%clk 0:01:10]}  Kh7 {[%clk 0:00:33]} 25. Nf8+ {[%clk 0:01:03]}  Kh8 {[%clk 0:00:33]} 26. Qh7# {[%clk 0:01:03]} 1-0


[Site "https://www.chess.com"]

[Event "Titled Tuesday Blitz May 16 Early 2023"]
[White "Afanasieva, Alexandra"]
[Black "Santos Flores, Alberto"]
[WhiteFideId "34126926"]
[BlackFideId "3601234"]
[WhiteElo "1745"]
[BlackElo "2235"]
[Result "0-1"]
[Round "02"]
[TimeControl "180+2"]
[Date "2023.05.16"]
[WhiteClock "0:01:36"]
[BlackClock "0:02:35"]

1. e4 {[%clk 0:03:00]}  c5 {[%clk 0:03:00]} 2. d3 {[%clk 0:02:59]}  Nc6 {[%clk 0:02:59]} 3. Nc3 {[%clk 0:02:58]}  g6 {[%clk 0:02:59]} 4. f4 {[%clk 0:02:58]}  Bg7 {[%clk 0:02:59]} 5. Nf3 {[%clk 0:02:58]}  e6 {[%clk 0:02:59]} 6. g3 {[%clk 0:02:58]}  Nge7 {[%clk 0:03:00]} 7. Bg2 {[%clk 0:02:58]}  d5 {[%clk 0:02:59]} 8. exd5 {[%clk 0:02:54]}  exd5 {[%clk 0:02:56]} 9. O-O {[%clk 0:02:54]}  O-O {[%clk 0:02:56]} 10. Re1 {[%clk 0:02:53]}  h6 {[%clk 0:02:53]} 11. a3 {[%clk 0:02:40]}  Be6 {[%clk 0:02:53]} 12. Qe2 {[%clk 0:02:29]}  Qd7 {[%clk 0:02:52]} 13. Ne5 {[%clk 0:02:26]}  Nxe5 {[%clk 0:02:52]} 14. fxe5 {[%clk 0:02:26]}  Nc6 {[%clk 0:02:52]} 15. Qf2 {[%clk 0:02:05]}  b6 {[%clk 0:02:46]} 16. Bf4 {[%clk 0:01:54]}  g5 {[%clk 0:02:46]} 17. Bd2 {[%clk 0:01:54]}  Nxe5 {[%clk 0:02:46]} 18. Re2 {[%clk 0:01:48]}  Nc6 {[%clk 0:02:38]} 19. Rae1 {[%clk 0:01:48]}  Nd4 {[%clk 0:02:36]} 20. Rxe6 {[%clk 0:01:42]}  fxe6 {[%clk 0:02:36]} 21. Qe3 {[%clk 0:01:36]}  Nxc2 {[%clk 0:02:35]} 0-1


[Site "https://www.chess.com"]

[Event "Titled Tuesday Blitz May 16 Early 2023"]
[White "Mayeregger, Arnold"]
[Black "Sala, Giulia"]
[WhiteFideId "3705226"]
[BlackFideId "2840451"]
[WhiteElo "2038"]
[BlackElo "1769"]
[Result "0-1"]
[Round "02"]
[TimeControl "180+2"]
[Date "2023.05.16"]
[WhiteClock "0:00:48"]
[BlackClock "0:00:37"]

1. d4 {[%clk 0:02:52]}  b6 {[%clk 0:02:16]} 2. e4 {[%clk 0:02:42]}  Bb7 {[%clk 0:02:16]} 3. Bd3 {[%clk 0:02:42]}  Nf6 {[%clk 0:02:14]} 4. Nd2 {[%clk 0:02:41]}  d6 {[%clk 0:02:14]} 5. Qe2 {[%clk 0:02:40]}  Nc6 {[%clk 0:02:13]} 6. c3 {[%clk 0:02:39]}  e5 {[%clk 0:02:11]} 7. d5 {[%clk 0:02:39]}  Ne7 {[%clk 0:02:10]} 8. Nh3 {[%clk 0:02:38]}  Ng6 {[%clk 0:02:10]} 9. O-O {[%clk 0:02:38]}  Be7 {[%clk 0:02:07]} 10. f4 {[%clk 0:02:38]}  exf4 {[%clk 0:02:06]} 11. Nxf4 {[%clk 0:02:38]}  Ne5 {[%clk 0:02:05]} 12. Bc2 {[%clk 0:02:34]}  O-O {[%clk 0:02:05]} 13. Nf3 {[%clk 0:02:34]}  Nfd7 {[%clk 0:02:04]} 14. Nd4 {[%clk 0:02:33]}  a5 {[%clk 0:02:04]} 15. Re1 {[%clk 0:02:28]}  Nc5 {[%clk 0:02:02]} 16. Nf5 {[%clk 0:02:27]}  Bg5 {[%clk 0:02:00]} 17. Be3 {[%clk 0:02:24]}  Ba6 {[%clk 0:01:58]} 18. Qh5 {[%clk 0:02:22]}  g6 {[%clk 0:01:52]} 19. Qh3 {[%clk 0:02:16]}  gxf5 {[%clk 0:01:49]} 20. Qxf5 {[%clk 0:01:53]}  Qf6 {[%clk 0:01:43]} 21. Nh5 {[%clk 0:01:31]}  Qxf5 {[%clk 0:01:40]} 22. exf5 {[%clk 0:01:32]}  Bxe3+ {[%clk 0:01:33]} 23. Rxe3 {[%clk 0:01:33]}  Bd3 {[%clk 0:01:23]} 24. Bxd3 {[%clk 0:01:30]}  Ncxd3 {[%clk 0:01:24]} 25. Rd1 {[%clk 0:01:26]}  Nc5 {[%clk 0:01:04]} 26. g4 {[%clk 0:01:21]}  f6 {[%clk 0:01:01]} 27. h3 {[%clk 0:01:20]}  Rae8 {[%clk 0:01:01]} 28. Nf4 {[%clk 0:01:11]}  Nc4 {[%clk 0:00:59]} 29. Rxe8 {[%clk 0:01:00]}  Rxe8 {[%clk 0:01:00]} 30. b4 {[%clk 0:01:01]}  axb4 {[%clk 0:00:58]} 31. cxb4 {[%clk 0:01:02]}  Ne4 {[%clk 0:00:49]} 32. Ne6 {[%clk 0:00:59]}  c5 {[%clk 0:00:49]} 33. dxc6 {[%clk 0:00:56]}  Nc3 {[%clk 0:00:40]} 34. Rc1 {[%clk 0:00:55]}  Ne2+ {[%clk 0:00:40]} 35. Kf2 {[%clk 0:00:54]}  Nxc1 {[%clk 0:00:40]} 36. b5 {[%clk 0:00:48]}  Nxa2 {[%clk 0:00:37]} 0-1


[Site "https://www.chess.com"]

[Event "Titled Tuesday Blitz May 16 Early 2023"]
[White "Lesbekova, Assel"]
[Black "Shapiro, Viktor"]
[WhiteFideId "13713248"]
[BlackFideId "4175700"]
[WhiteElo "1805"]
[BlackElo "2152"]
[Result "1-0"]
[Round "02"]
[TimeControl "180+2"]
[Date "2023.05.16"]
[WhiteClock "0:00:31"]
[BlackClock "0:00:10"]

1. e4 {[%clk 0:03:00]}  Nf6 {[%clk 0:02:58]} 2. e5 {[%clk 0:02:59]}  Nd5 {[%clk 0:02:58]} 3. d4 {[%clk 0:03:00]}  d6 {[%clk 0:02:59]} 4. c4 {[%clk 0:03:00]}  Nb6 {[%clk 0:02:59]} 5. exd6 {[%clk 0:03:00]}  cxd6 {[%clk 0:02:59]} 6. h3 {[%clk 0:03:01]}  g6 {[%clk 0:02:59]} 7. Nf3 {[%clk 0:03:01]}  Bg7 {[%clk 0:03:00]} 8. Nc3 {[%clk 0:03:01]}  O-O {[%clk 0:03:00]} 9. Be2 {[%clk 0:03:00]}  e5 {[%clk 0:03:00]} 10. dxe5 {[%clk 0:02:57]}  dxe5 {[%clk 0:03:00]} 11. Bg5 {[%clk 0:02:55]}  Qxd1+ {[%clk 0:02:54]} 12. Rxd1 {[%clk 0:02:56]}  f6 {[%clk 0:02:55]} 13. Be3 {[%clk 0:02:55]}  Be6 {[%clk 0:02:48]} 14. Nb5 {[%clk 0:02:48]}  Na6 {[%clk 0:02:31]} 15. c5 {[%clk 0:02:28]}  Nc4 {[%clk 0:02:18]} 16. Bxc4 {[%clk 0:02:10]}  Bxc4 {[%clk 0:02:18]} 17. Nd6 {[%clk 0:02:11]}  Bxa2 {[%clk 0:02:15]} 18. Nxb7 {[%clk 0:02:10]}  Rfc8 {[%clk 0:02:07]} 19. Ra1 {[%clk 0:02:07]}  Nb4 {[%clk 0:01:54]} 20. O-O {[%clk 0:02:00]}  Bd5 {[%clk 0:01:52]} 21. Nd6 {[%clk 0:01:55]}  Rc6 {[%clk 0:01:50]} 22. Ra4 {[%clk 0:01:48]}  Nd3 {[%clk 0:01:35]} 23. b4 {[%clk 0:01:44]}  f5 {[%clk 0:01:02]} 24. b5 {[%clk 0:01:37]}  Rcc8 {[%clk 0:01:01]} 25. Nxc8 {[%clk 0:01:35]}  Rxc8 {[%clk 0:01:01]} 26. c6 {[%clk 0:01:32]}  e4 {[%clk 0:00:53]} 27. Nd4 {[%clk 0:01:30]}  f4 {[%clk 0:00:52]} 28. Bd2 {[%clk 0:01:29]}  Nb2 {[%clk 0:00:43]} 29. Rxa7 {[%clk 0:00:49]}  Bxd4 {[%clk 0:00:42]} 30. Rd7 {[%clk 0:00:49]}  Bc4 {[%clk 0:00:37]} 31. Rxd4 {[%clk 0:00:48]}  Bxf1 {[%clk 0:00:33]} 32. Kxf1 {[%clk 0:00:49]}  Nd3 {[%clk 0:00:25]} 33. Rxe4 {[%clk 0:00:40]}  Nc5 {[%clk 0:00:25]} 34. Rc4 {[%clk 0:00:36]}  Ne6 {[%clk 0:00:15]} 35. b6 {[%clk 0:00:35]}  Kf7 {[%clk 0:00:14]} 36. b7 {[%clk 0:00:32]}  Rb8 {[%clk 0:00:14]} 37. c7 {[%clk 0:00:31]}  Nxc7 {[%clk 0:00:15]} 38. Rxc7+ {[%clk 0:00:32]}  Ke6 {[%clk 0:00:15]} 39. Bxf4 {[%clk 0:00:32]}  g5 {[%clk 0:00:10]} 40. Bh2 {[%clk 0:00:31]} 1-0


[Site "https://www.chess.com"]

[Event "Titled Tuesday Blitz May 16 Early 2023"]
[White "Ronka, Erik"]
[Black "Kuchava, Ana"]
[WhiteFideId "505080"]
[BlackFideId "13605348"]
[WhiteElo "2264"]
[BlackElo "2001"]
[Result "1-0"]
[Round "02"]
[TimeControl "180+2"]
[Date "2023.05.16"]
[WhiteClock "0:00:46"]
[BlackClock "0:01:02"]

1. d4 {[%clk 0:02:58]}  d5 {[%clk 0:02:57]} 2. c4 {[%clk 0:02:58]}  e6 {[%clk 0:02:57]} 3. Nc3 {[%clk 0:02:55]}  Be7 {[%clk 0:02:57]} 4. Nf3 {[%clk 0:02:51]}  Nf6 {[%clk 0:02:57]} 5. Bg5 {[%clk 0:02:10]}  O-O {[%clk 0:02:47]} 6. e3 {[%clk 0:02:08]}  h6 {[%clk 0:02:43]} 7. Bh4 {[%clk 0:02:01]}  b6 {[%clk 0:02:38]} 8. Bxf6 {[%clk 0:01:59]}  Bxf6 {[%clk 0:02:38]} 9. cxd5 {[%clk 0:02:00]}  exd5 {[%clk 0:02:35]} 10. Be2 {[%clk 0:01:58]}  Bf5 {[%clk 0:02:26]} 11. O-O {[%clk 0:01:55]}  c5 {[%clk 0:02:21]} 12. Qb3 {[%clk 0:01:50]}  c4 {[%clk 0:02:21]} 13. Qd1 {[%clk 0:01:48]}  Nc6 {[%clk 0:02:19]} 14. b3 {[%clk 0:01:45]}  cxb3 {[%clk 0:02:13]} 15. Qxb3 {[%clk 0:01:42]}  Rc8 {[%clk 0:02:12]} 16. Nxd5 {[%clk 0:01:34]}  Na5 {[%clk 0:01:59]} 17. Nxf6+ {[%clk 0:01:34]}  Qxf6 {[%clk 0:02:00]} 18. Qa4 {[%clk 0:01:29]}  Be4 {[%clk 0:01:55]} 19. Rac1 {[%clk 0:01:27]}  Rfd8 {[%clk 0:01:37]} 20. Nd2 {[%clk 0:01:20]}  Bc6 {[%clk 0:01:36]} 21. Qb4 {[%clk 0:01:14]}  Qg5 {[%clk 0:01:27]} 22. Bf3 {[%clk 0:01:13]}  Bb5 {[%clk 0:01:26]} 23. Rfe1 {[%clk 0:01:10]}  Nc6 {[%clk 0:01:21]} 24. Qb2 {[%clk 0:01:07]}  Ne7 {[%clk 0:01:20]} 25. Ne4 {[%clk 0:01:04]}  Qf5 {[%clk 0:01:14]} 26. Rxc8 {[%clk 0:01:02]}  Rxc8 {[%clk 0:01:13]} 27. Nd6 {[%clk 0:01:03]}  Qc2 {[%clk 0:01:09]} 28. Qxc2 {[%clk 0:00:55]}  Rxc2 {[%clk 0:01:10]} 29. Nxb5 {[%clk 0:00:56]}  Rxa2 {[%clk 0:01:07]} 30. d5 {[%clk 0:00:56]}  Kf8 {[%clk 0:01:05]} 31. Rc1 {[%clk 0:00:50]}  Ke8 {[%clk 0:01:04]} 32. Nd6+ {[%clk 0:00:46]}  Kd7 {[%clk 0:01:02]} 33. Nxf7 {[%clk 0:00:46]} 1-0


[Site "https://www.chess.com"]

[Event "Titled Tuesday Blitz May 16 Early 2023"]
[White "Baches Garcia, Guillermo"]
[Black "Boder, Jan"]
[WhiteFideId "2209764"]
[BlackFideId "16243226"]
[WhiteElo "2504"]
[BlackElo "2241"]
[Result "0-1"]
[Round "02"]
[TimeControl "180+2"]
[Date "2023.05.16"]
[WhiteClock "0:00:00"]
[BlackClock "0:00:07"]

1. e4 {[%clk 0:03:00]}  e5 {[%clk 0:03:00]} 2. Nf3 {[%clk 0:03:01]}  Nf6 {[%clk 0:03:00]} 3. Nc3 {[%clk 0:03:01]}  Nc6 {[%clk 0:03:00]} 4. d4 {[%clk 0:03:01]}  exd4 {[%clk 0:03:00]} 5. Nxd4 {[%clk 0:03:02]}  Bb4 {[%clk 0:03:00]} 6. Nxc6 {[%clk 0:03:03]}  bxc6 {[%clk 0:03:00]} 7. Bd3 {[%clk 0:03:03]}  d5 {[%clk 0:02:59]} 8. Bd2 {[%clk 0:03:03]}  Bxc3 {[%clk 0:02:57]} 9. Bxc3 {[%clk 0:03:03]}  dxe4 {[%clk 0:02:58]} 10. Bxf6 {[%clk 0:02:56]}  Qxf6 {[%clk 0:02:58]} 11. Qe2 {[%clk 0:02:57]}  O-O {[%clk 0:02:54]} 12. Qxe4 {[%clk 0:02:56]}  g6 {[%clk 0:02:54]} 13. O-O {[%clk 0:02:55]}  Qxb2 {[%clk 0:02:52]} 14. Qxc6 {[%clk 0:02:55]}  Bb7 {[%clk 0:02:36]} 15. Qxc7 {[%clk 0:02:48]}  Rac8 {[%clk 0:02:36]} 16. Qf4 {[%clk 0:02:40]}  Qb6 {[%clk 0:02:10]} 17. Rfe1 {[%clk 0:02:31]}  Rc5 {[%clk 0:01:59]} 18. Re7 {[%clk 0:02:20]}  Bd5 {[%clk 0:01:23]} 19. h4 {[%clk 0:02:06]}  Qc6 {[%clk 0:01:12]} 20. f3 {[%clk 0:01:44]}  Be6 {[%clk 0:01:11]} 21. Kh2 {[%clk 0:01:31]}  a5 {[%clk 0:01:07]} 22. a4 {[%clk 0:01:24]}  Qb6 {[%clk 0:00:58]} 23. Re1 {[%clk 0:01:19]}  Qd8 {[%clk 0:00:58]} 24. Qf6 {[%clk 0:01:09]}  Rc6 {[%clk 0:00:30]} 25. Bb5 {[%clk 0:00:52]}  Rd6 {[%clk 0:00:29]} 26. h5 {[%clk 0:00:47]}  Bf5 {[%clk 0:00:28]} 27. Qc3 {[%clk 0:00:34]}  gxh5 {[%clk 0:00:23]} 28. Re8 {[%clk 0:00:28]}  Qh4+ {[%clk 0:00:20]} 29. Kg1 {[%clk 0:00:26]}  Qf6 {[%clk 0:00:19]} 30. Qxf6 {[%clk 0:00:16]}  Rxf6 {[%clk 0:00:18]} 31. c4 {[%clk 0:00:16]}  Rd6 {[%clk 0:00:18]} 32. c5 {[%clk 0:00:16]}  Rd2 {[%clk 0:00:15]} 33. c6 {[%clk 0:00:15]}  Rc2 {[%clk 0:00:16]} 34. R8e7 {[%clk 0:00:14]}  h4 {[%clk 0:00:15]} 35. c7 {[%clk 0:00:13]}  h3 {[%clk 0:00:15]} 36. gxh3 {[%clk 0:00:12]}  Bxh3 {[%clk 0:00:16]} 37. Ba6 {[%clk 0:00:10]}  Kg7 {[%clk 0:00:12]} 38. Bb7 {[%clk 0:00:07]}  Kf6 {[%clk 0:00:12]} 39. R7e4 {[%clk 0:00:04]}  Rg8+ {[%clk 0:00:12]} 40. Kh1 {[%clk 0:00:04]}  Bg2+ {[%clk 0:00:12]} 41. Kh2 {[%clk 0:00:04]}  Bxf3+ {[%clk 0:00:12]} 42. Kh3 {[%clk 0:00:04]}  Bxe4 {[%clk 0:00:11]} 43. Rxe4 {[%clk 0:00:04]}  Rxc7 {[%clk 0:00:10]} 44. Ba6 {[%clk 0:00:04]}  Rc3+ {[%clk 0:00:09]} 45. Kh4 {[%clk 0:00:04]}  Rg1 {[%clk 0:00:09]} 46. Bb5 {[%clk 0:00:03]}  Rh1+ {[%clk 0:00:09]} 47. Kg4 {[%clk 0:00:02]}  Rg1+ {[%clk 0:00:09]} 48. Kh4 {[%clk 0:00:02]}  Rc2 {[%clk 0:00:09]} 49. Rf4+ {[%clk 0:00:02]}  Ke6 {[%clk 0:00:09]} 50. Kh3 {[%clk 0:00:02]}  f5 {[%clk 0:00:07]} 51. Rf3 {[%clk 0:00:00]}  Ke5 {[%clk 0:00:07]} 0-1


[Site "https://www.chess.com"]

[Event "Titled Tuesday Blitz May 16 Early 2023"]
[White "Chakravarthi Reddy, M"]
[Black "Chernomordik, Pavel"]
[WhiteFideId "25009532"]
[BlackFideId "2804530"]
[WhiteElo "2201"]
[BlackElo "2193"]
[Result "0-1"]
[Round "02"]
[TimeControl "180+2"]
[Date "2023.05.16"]
[WhiteClock "0:00:12"]
[BlackClock "0:01:21"]

1. e4 {[%clk 0:03:00]}  g6 {[%clk 0:02:59]} 2. d4 {[%clk 0:03:00]}  Bg7 {[%clk 0:02:59]} 3. Nc3 {[%clk 0:03:00]}  d6 {[%clk 0:02:59]} 4. f4 {[%clk 0:03:01]}  a6 {[%clk 0:02:59]} 5. a4 {[%clk 0:03:01]}  b6 {[%clk 0:02:59]} 6. Nf3 {[%clk 0:03:01]}  e6 {[%clk 0:02:57]} 7. Bd3 {[%clk 0:03:01]}  Ne7 {[%clk 0:02:57]} 8. O-O {[%clk 0:03:01]}  c5 {[%clk 0:02:56]} 9. d5 {[%clk 0:02:58]}  exd5 {[%clk 0:02:53]} 10. Nxd5 {[%clk 0:02:57]}  Nxd5 {[%clk 0:02:50]} 11. exd5 {[%clk 0:02:58]}  O-O {[%clk 0:02:46]} 12. f5 {[%clk 0:02:58]}  c4 {[%clk 0:02:41]} 13. fxg6 {[%clk 0:01:51]}  cxd3 {[%clk 0:02:28]} 14. gxh7+ {[%clk 0:01:51]}  Kh8 {[%clk 0:02:28]} 15. Qxd3 {[%clk 0:01:52]}  Nd7 {[%clk 0:02:26]} 16. Ng5 {[%clk 0:01:37]}  Ne5 {[%clk 0:02:24]} 17. Qe2 {[%clk 0:01:28]}  Qe7 {[%clk 0:02:12]} 18. Bf4 {[%clk 0:01:10]}  f6 {[%clk 0:01:55]} 19. Ne4 {[%clk 0:00:44]}  Bf5 {[%clk 0:01:51]} 20. Ng3 {[%clk 0:00:42]}  Bxh7 {[%clk 0:01:51]} 21. Rae1 {[%clk 0:00:39]}  Qf7 {[%clk 0:01:49]} 22. Ne4 {[%clk 0:00:36]}  Qxd5 {[%clk 0:01:47]} 23. Nc3 {[%clk 0:00:31]}  Qc4 {[%clk 0:01:38]} 24. Qh5 {[%clk 0:00:27]}  Rae8 {[%clk 0:01:31]} 25. Re3 {[%clk 0:00:25]}  Qf7 {[%clk 0:01:29]} 26. Qh4 {[%clk 0:00:20]}  Ng6 {[%clk 0:01:28]} 27. Qg3 {[%clk 0:00:18]}  Nxf4 {[%clk 0:01:26]} 28. Qxf4 {[%clk 0:00:18]}  Rxe3 {[%clk 0:01:25]} 29. Qxe3 {[%clk 0:00:19]}  f5 {[%clk 0:01:25]} 30. Ne2 {[%clk 0:00:17]}  Re8 {[%clk 0:01:23]} 31. Qf2 {[%clk 0:00:16]}  Qc4 {[%clk 0:01:21]} 32. Ng3 {[%clk 0:00:12]}  Bd4 {[%clk 0:01:21]} 0-1


[Site "https://www.chess.com"]

[Event "Titled Tuesday Blitz May 16 Early 2023"]
[White "mestrefeitosa19"]
[Black "Yelisieiev, Yevhenii"]
[BlackFideId "14139642"]
[WhiteElo "2230"]
[BlackElo "2403"]
[Result "0-1"]
[Round "02"]
[TimeControl "180+2"]
[Date "2023.05.16"]
[WhiteClock "0:00:19"]
[BlackClock "0:00:12"]

1. c4 {[%clk 0:03:00]}  d6 {[%clk 0:02:59]} 2. d4 {[%clk 0:03:00]}  e5 {[%clk 0:02:58]} 3. dxe5 {[%clk 0:02:57]}  dxe5 {[%clk 0:02:59]} 4. Qxd8+ {[%clk 0:02:58]}  Kxd8 {[%clk 0:02:59]} 5. Nf3 {[%clk 0:02:58]}  f6 {[%clk 0:02:59]} 6. Nc3 {[%clk 0:02:59]}  Be6 {[%clk 0:02:58]} 7. e3 {[%clk 0:02:58]}  Nd7 {[%clk 0:02:59]} 8. Be2 {[%clk 0:02:58]}  c6 {[%clk 0:02:57]} 9. O-O {[%clk 0:02:59]}  Kc7 {[%clk 0:02:54]} 10. a3 {[%clk 0:02:58]}  a5 {[%clk 0:02:52]} 11. Rb1 {[%clk 0:02:53]}  a4 {[%clk 0:02:40]} 12. Nd2 {[%clk 0:02:47]}  Nc5 {[%clk 0:02:32]} 13. Nce4 {[%clk 0:02:33]}  Nh6 {[%clk 0:02:16]} 14. Nxc5 {[%clk 0:02:31]}  Bxc5 {[%clk 0:02:16]} 15. Ne4 {[%clk 0:02:32]}  Be7 {[%clk 0:02:15]} 16. Bd2 {[%clk 0:02:23]}  Rhd8 {[%clk 0:02:13]} 17. Rfd1 {[%clk 0:02:23]}  Nf7 {[%clk 0:02:02]} 18. Bc3 {[%clk 0:02:14]}  Bf5 {[%clk 0:01:52]} 19. Bf3 {[%clk 0:02:06]}  Nd6 {[%clk 0:01:32]} 20. Nc5 {[%clk 0:01:43]}  Bxb1 {[%clk 0:01:30]} 21. Ne6+ {[%clk 0:01:43]}  Kc8 {[%clk 0:01:02]} 22. Nxd8 {[%clk 0:01:34]}  Bc2 {[%clk 0:00:51]} 23. Rd2 {[%clk 0:01:31]}  Bf5 {[%clk 0:00:44]} 24. Nxc6 {[%clk 0:00:45]}  bxc6 {[%clk 0:00:41]} 25. Bxc6 {[%clk 0:00:46]}  Ra6 {[%clk 0:00:35]} 26. Bd5 {[%clk 0:00:43]}  Ne4 {[%clk 0:00:28]} 27. Rc2 {[%clk 0:00:38]}  Nxc3 {[%clk 0:00:21]} 28. Rxc3 {[%clk 0:00:39]}  Be6 {[%clk 0:00:21]} 29. e4 {[%clk 0:00:39]}  Bxd5 {[%clk 0:00:21]} 30. cxd5+ {[%clk 0:00:39]}  Kd7 {[%clk 0:00:20]} 31. Rc4 {[%clk 0:00:39]}  Bd6 {[%clk 0:00:17]} 32. f3 {[%clk 0:00:39]}  Rb6 {[%clk 0:00:17]} 33. Rxa4 {[%clk 0:00:39]}  Bc5+ {[%clk 0:00:17]} 34. Kh1 {[%clk 0:00:36]}  Rxb2 {[%clk 0:00:17]} 35. h3 {[%clk 0:00:32]}  Ra2 {[%clk 0:00:13]} 36. Ra6 {[%clk 0:00:32]}  Rxa3 {[%clk 0:00:13]} 37. Rc6 {[%clk 0:00:30]}  Be3 {[%clk 0:00:12]} 38. Kh2 {[%clk 0:00:20]}  Bf4+ {[%clk 0:00:11]} 39. g3 {[%clk 0:00:21]}  Ra2+ {[%clk 0:00:11]} 40. Kg1 {[%clk 0:00:21]}  Bxg3 {[%clk 0:00:12]} 41. Rb6 {[%clk 0:00:21]}  Bf2+ {[%clk 0:00:12]} 42. Kf1 {[%clk 0:00:19]}  Bxb6 {[%clk 0:00:12]} 0-1


[Site "https://www.chess.com"]